bitfinex/quotes_SOLUSD_20251223
["timestamp","ask_amount","ask_price","bid_price","bid_amount"]
[1766476580327,0.52,124.27,124.24,0.2]
[1766476580626,14.7,124.28,124.25,0.7]
[1766476581536,13.54792048,124.3,124.26,0.7]
[1766476581748,14.7,124.29,124.26,0.7]
[1766476585425,14.7,124.29,124.27,0.7]
[1766476600449,0.52,124.31,124.27,0.7]
[1766476600649,14.7,124.3,124.28,0.72]
[1766476610852,14.7,124.3,124.24,10.63767296]
[1766476610853,17.81024752,124.3,124.24,10.63767296]
[1766476611149,17.81024752,124.3,124.24,0.92]
[1766476611150,3.63024752,124.27,124.24,0.92]
[1766476611454,15.22,124.26,124.24,0.92]
[1766476611851,14.7,124.26,124.24,0.92]
[1766476612557,14.7,124.26,124.25,0.72]
[1766476614656,14.7,124.26,124.24,0.2]
[1766476614863,14.7,124.26,124.24,0.92]
[1766476615758,14.7,124.26,124.24,0.2]
[1766476615961,14.7,124.26,124.25,0.72]
[1766476616150,14.7,124.26,124.24,0.2]
[1766476616349,14.7,124.26,124.24,0.92]
[1766476618777,14.7,124.26,124.24,0.2]
[1766476618778,1.9921816,124.25,124.24,0.2]
[1766476620076,17.2121816,124.26,124.24,0.2]
[1766476624787,15.22,124.26,124.24,0.2]
[1766476624983,17.2121816,124.26,124.24,0.2]
[1766476625289,17.2121816,124.26,124.24,0.92]
[1766476625585,13.98,124.26,124.25,0.72]
[1766476626096,13.98,124.26,124.24,0.87]
[1766476626765,14.7,124.26,124.24,0.87]
[1766476627675,13.98,124.26,124.24,0.87]
[1766476629994,13.98,124.26,124.24,0.2]
[1766476630287,13.98,124.26,124.24,0.87]
[1766476631392,13.98,124.26,124.25,0.67]
[1766476636893,13.98,124.26,124.24,0.87]
[1766476640301,13.98,124.26,124.24,0.2]
[1766476640481,13.98,124.26,124.25,0.67]
[1766476640676,13.98,124.26,124.22,10.24191488]
[1766476640677,0.72,124.25,124.22,0.2]
[1766476640886,1.9921816,124.23,124.19,8.05202419]
[1766476641081,0.72,124.24,124.21,10.04301212]
[1766476641281,0.72,124.25,124.21,10.04301212]
[1766476642180,0.72,124.25,124.21,8.05083052]
[1766476642790,0.72,124.25,124.21,10.04301212]
[1766476642998,0.72,124.25,124.22,0.67]
[1766476643197,0.72,124.25,124.21,8.72083052]
[1766476643688,0.72,124.25,124.21,10.71301212]
[1766476644580,0.72,124.24,124.21,10.71301212]
[1766476645902,1.9921816,124.23,124.19,0.67]
[1766476646095,0.72,124.22,124.19,0.67]
[1766476646778,2.7121816,124.22,124.19,0.67]
[1766476648604,0.72,124.21,124.18,0.67]
[1766476648908,0.72,124.21,124.18,8.72280327]
[1766476649699,14.7,124.23,124.18,8.05280327]
[1766476649886,0.72,124.22,124.19,2.6621816]
[1766476650099,0.72,124.22,124.19,0.67]
[1766476650419,0.72,124.22,124.19,2.6621816]
[1766476650779,0.72,124.22,124.19,0.67]
[1766476651186,0.72,124.22,124.19,2.6621816]
[1766476652809,0.72,124.22,124.2,1.9921816]
[1766476653898,14.7,124.23,124.21,0.7]
[1766476654110,0.65,124.24,124.21,2.6921816]
[1766476655296,0.65,124.24,124.22,1.9921816]
[1766476655814,0.65,124.24,124.21,0.7]
[1766476655815,0.65,124.24,124.21,1.9921816]
[1766476656151,0.65,124.24,124.2,8.05136473]
[1766476656152,0.7,124.23,124.2,2.6721816]
[1766476656619,0.7,124.23,124.19,10.72417021]
[1766476656795,0.7,124.23,124.2,2.6721816]
[1766476657000,0.7,124.23,124.2,10.72366841]
[1766476658837,0.7,124.23,124.2,2.6721816]
[1766476659822,0.7,124.23,124.18,20.13106167]
[1766476659998,0.7,124.23,124.19,1.9921816]
[1766476660200,0.7,124.23,124.19,2.6721816]
[1766476662424,0.7,124.23,124.2,1.9921816]
[1766476664009,0.7,124.23,124.2,2.6721816]
[1766476665406,0.7,124.23,124.2,0.68]
[1766476665630,0.7,124.23,124.2,1.9921816]
[1766476665824,0.7,124.23,124.19,8.73200382]
[1766476666029,0.7,124.23,124.19,10.72418542]
[1766476668228,0.7,124.21,124.19,1.9921816]
[1766476668404,15.4,124.22,124.19,2.6721816]
[1766476668736,0.7,124.21,124.19,2.6721816]
[1766476672437,0.7,124.21,124.19,1.9521816]
[1766476672610,0.7,124.19,124.14,10.0473802]
[1766476672819,0.7,124.17,124.14,1.9921816]
[1766476673537,0.7,124.17,124.13,8.15586238]
[1766476673538,0.7,124.17,124.13,0.1]
[1766476673721,0.7,124.17,124.13,10.14820621]
[1766476674132,0.7,124.17,124.13,8.15602461]
[1766476674337,0.7,124.17,124.14,1.9921816]
[1766476674519,0.7,124.17,124.14,2.6721816]
[1766476675628,0.7,124.17,124.13,2.0921816]
[1766476675836,0.7,124.17,124.13,2.7721816]
[1766476678240,0.7,124.17,124.13,0.78]
[1766476678441,0.7,124.17,124.13,2.7721816]
[1766476679926,0.7,124.17,124.13,3.89767377]
[1766476680640,0.7,124.17,124.14,3.79767377]
[1766476682545,3.81767377,124.17,124.14,0.68]
[1766476683242,3.11767377,124.17,124.14,0.68]
[1766476683425,0.7,124.19,124.16,0.68]
[1766476683631,0.7,124.19,124.16,3.79767377]
[1766476683828,0.7,124.19,124.15,3.79767377]
[1766476685650,0.7,124.19,124.16,3.11767377]
[1766476686048,0.66,124.18,124.14,0.71]
[1766476686228,0.66,124.18,124.15,0.71]
[1766476686423,0.66,124.18,124.14,3.82767377]
[1766476686944,0.66,124.17,124.14,3.82767377]
[1766476687846,0.66,124.17,124.15,3.11767377]
[1766476689856,11.09767296,124.2,124.17,0.71]
[1766476690033,25.81767296,124.2,124.16,3.82767377]
[1766476690547,33.20924745,124.2,124.16,0.71]
[1766476690745,25.81767296,124.2,124.16,3.82767377]
[1766476691048,25.81767296,124.2,124.17,3.11767377]
[1766476691353,0.66,124.2,124.17,3.11767377]
[1766476692624,0.66,124.2,124.16,0.71]
[1766476692824,0.66,124.2,124.16,3.82767377]
[1766476694031,0.66,124.2,124.17,3.11767377]
[1766476695049,0.66,124.2,124.17,3.82767377]
[1766476696644,0.66,124.22,124.19,3.82767377]
[1766476696834,0.66,124.22,124.2,3.11767377]
[1766476697232,15.38,124.25,124.22,0.71]
[1766476697437,0.66,124.24,124.21,3.82767377]
[1766476697851,20.11800093,124.27,124.21,3.82767377]
[1766476697852,15.38,124.25,124.23,3.11767377]
[1766476698054,15.38,124.25,124.22,3.11767377]
[1766476702653,15.38,124.25,124.22,3.82767377]
[1766476704864,15.38,124.25,124.22,0.71]
[1766476705072,15.38,124.25,124.22,3.82767377]
[1766476707453,15.38,124.25,124.23,0.71]
[1766476708972,25.79767296,124.26,124.24,3.11767377]
[1766476711461,25.79767296,124.26,124.23,3.82767377]
[1766476712969,8.71655607,124.28,124.24,3.83767377]
[1766476713172,8.71655607,124.28,124.22,8.05012286]
[1766476713173,8.71655607,124.28,124.25,3.83767377]
[1766476713359,15.37,124.28,124.25,3.83767377]
[1766476716169,0.67,124.28,124.25,3.83767377]
[1766476716474,15.37,124.28,124.26,3.11767377]
[1766476716882,0.66,124.27,124.24,3.11767377]
[1766476717071,0.66,124.25,124.21,3.83767377]
[1766476717254,0.66,124.24,124.21,0.72]
[1766476717451,15.36,124.24,124.21,0.72]
[1766476718282,15.36,124.24,124.21,3.83767377]
[1766476721353,15.36,124.24,124.2,3.11767377]
[1766476721354,0.66,124.23,124.2,3.11767377]
[1766476721556,0.66,124.23,124.2,3.83767377]
[1766476722461,15.36,124.24,124.21,3.83767377]
[1766476723975,14.7,124.24,124.22,3.83767377]
[1766476725981,0.66,124.25,124.22,3.83767377]
[1766476726179,14.7,124.24,124.22,3.83767377]
[1766476727181,0.66,124.28,124.24,0.72]
[1766476727381,14.7,124.27,124.24,3.83767377]
[1766476727590,14.7,124.27,124.25,3.11767377]
[1766476730777,14.7,124.27,124.24,0.72]
[1766476730982,14.7,124.27,124.25,3.11767377]
[1766476731877,14.7,124.27,124.24,3.83767377]
[1766476732079,15.36,124.27,124.24,3.83767377]
[1766476736980,14.7,124.27,124.25,3.83767377]
[1766476741087,14.7,124.27,124.25,0.72]
[1766476742894,14.7,124.27,124.24,1.99177183]
[1766476743077,15.36,124.27,124.24,2.71177183]
[1766476745304,15.36,124.27,124.24,0.72]
[1766476745604,15.36,124.27,124.24,2.71177183]
[1766476746299,0.66,124.26,124.22,8.05010603]
[1766476746506,0.66,124.26,124.23,0.7]
[1766476755605,0.66,124.26,124.23,2.69177183]
[1766476755790,0.66,124.26,124.24,0.7]
[1766476756108,0.66,124.26,124.23,2.69177183]
[1766476759312,0.66,124.26,124.23,10.74132548]
[1766476759699,14.7,124.27,124.25,0.7]
[1766476760508,15.36,124.27,124.25,0.7]
[1766476760883,15.36,124.27,124.25,2.69177183]
[1766476761087,0.66,124.27,124.25,2.69177183]
[1766476766033,0.66,124.27,124.25,0.7]
[1766476766324,0.66,124.27,124.23,2.69177183]
[1766476768031,0.66,124.27,124.24,0.7]
[1766476768326,0.66,124.28,124.25,2.69177183]
[1766476768540,0.66,124.27,124.24,0.7]
[1766476768717,0.66,124.27,124.24,2.69177183]
[1766476772524,0.66,124.27,124.24,10.04059474]
[1766476772727,0.66,124.27,124.25,0.7]
[1766476776044,0.66,124.27,124.24,10.74059474]
[1766476778127,0.66,124.27,124.25,1.99177183]
[1766476778948,0.66,124.27,124.24,10.74059474]
[1766476779446,0.66,124.27,124.24,8.74882291]
[1766476779849,0.66,124.27,124.24,10.74059474]
[1766476784451,0.66,124.27,124.24,10.66077604]
[1766476789253,22.74585322,124.29,124.25,0.7]
[1766476789444,0.67,124.28,124.25,0.7]
[1766476791056,0.67,124.28,124.25,2.61195313]
[1766476795666,0.67,124.28,124.25,0.7]
[1766476795965,0.67,124.28,124.25,2.61195313]
[1766476799466,0.67,124.28,124.25,0.7]
[1766476799859,0.67,124.28,124.25,2.61195313]
[1766476800551,0.67,124.28,124.25,0.7]
[1766476800752,0.67,124.28,124.25,1.91195313]
[1766476801651,0.67,124.28,124.24,2.1]
[1766476802049,0.67,124.27,124.24,2.1]
[1766476802357,0.67,124.27,124.24,1.4]
[1766476802662,0.67,124.27,124.24,2.1]
[1766476802859,3.65772093,124.27,124.24,1.4]
[1766476803063,2.98772093,124.26,124.22,0.7]
[1766476803270,0.37,124.25,124.22,0.7]
[1766476803449,2.98772093,124.25,124.19,22.75212032]
[1766476803771,0.37,124.24,124.2,3.68772093]
[1766476803947,0.37,124.24,124.21,0.7]
[1766476805875,0.37,124.24,124.2,3.68772093]
[1766476806254,0.37,124.24,124.2,2.98772093]
[1766476806460,0.37,124.24,124.2,3.68772093]
[1766476806967,0.37,124.23,124.2,0.7]
[1766476807647,0.37,124.23,124.2,3.68772093]
[1766476808071,0.37,124.22,124.2,0.7]
[1766476808243,0.37,124.22,124.19,3.68772093]
[1766476808874,0.37,124.22,124.19,2.98772093]
[1766476809054,0.37,124.22,124.2,0.7]
[1766476811071,0.37,124.22,124.19,3.68772093]
[1766476811383,0.37,124.23,124.2,0.7]
[1766476811676,8.0490855,124.24,124.2,0.7]
[1766476811677,0.37,124.24,124.21,2.98772093]
[1766476811871,0.37,124.24,124.2,3.68772093]
[1766476814048,0.37,124.23,124.2,0.7]
[1766476814954,0.37,124.23,124.2,3.68772093]
[1766476823191,0.37,124.23,124.2,0.7]
[1766476823381,0.37,124.23,124.2,3.68772093]
[1766476824565,0.37,124.24,124.2,8.05148707]
[1766476824867,0.37,124.24,124.2,11.739208]
[1766476827993,0.37,124.24,124.21,0.7]
[1766476828768,0.37,124.31,124.24,0.7]
[1766476829082,0.37,124.31,124.22,14.7]
[1766476829083,0.37,124.31,124.26,3.68772093]
[1766476829266,10.43767296,124.29,124.26,3.68772093]
[1766476829473,0.37,124.29,124.26,3.68772093]
[1766476829975,10.80767296,124.29,124.26,3.68772093]
[1766476831484,10.80767296,124.29,124.23,2.98772093]
[1766476831485,0.37,124.27,124.23,2.98772093]
[1766476831690,0.37,124.27,124.23,3.68772093]
[1766476831882,0.37,124.27,124.24,0.7]
[1766476832285,15.07,124.27,124.24,0.7]
[1766476832763,15.07,124.27,124.24,3.68772093]
[1766476832969,14.7,124.27,124.25,3.66772093]
[1766476833169,33.5535686,124.29,124.25,3.66772093]
[1766476834195,10.80767296,124.29,124.26,3.66772093]
[1766476834488,25.50767296,124.29,124.26,3.66772093]
[1766476834695,25.50767296,124.29,124.26,2.98772093]
[1766476835071,25.50767296,124.29,124.25,0.68]
[1766476835272,0.37,124.28,124.25,3.66772093]
[1766476836372,0.37,124.28,124.25,0.68]
[1766476836599,0.37,124.28,124.24,2.98772093]
[1766476836932,8.04640876,124.28,124.24,3.65772093]
[1766476837072,0.37,124.27,124.24,3.65772093]
[1766476838500,0.37,124.27,124.24,0.67]
[1766476838679,0.37,124.27,124.24,3.65772093]
[1766476841589,0.37,124.27,124.23,2.98772093]
[1766476841790,0.37,124.27,124.23,3.65772093]
[1766476842496,0.37,124.25,124.21,8.72088157]
[1766476842885,0.37,124.25,124.22,0.67]
[1766476843286,14.7,124.26,124.24,0.67]
[1766476843696,14.7,124.26,124.24,3.65772093]
[1766476844802,14.7,124.26,124.24,0.67]
[1766476848905,10.80767296,124.29,124.25,2.98772093]
[1766476849087,0.37,124.29,124.27,3.65772093]
[1766476849495,0.37,124.29,124.27,0.67]
[1766476849806,0.37,124.29,124.26,3.65772093]
[1766476852807,0.37,124.29,124.26,0.67]
[1766476853110,0.37,124.29,124.26,3.65772093]
[1766476853411,8.41572312,124.29,124.26,0.67]
[1766476860722,8.41572312,124.29,124.26,3.65772093]
[1766476860922,8.04572312,124.29,124.27,0.67]
[1766476861129,33.55275361,124.3,124.27,0.67]
[1766476861423,33.55275361,124.3,124.27,3.65772093]
[1766476861794,33.55275361,124.3,124.27,0.67]
[1766476864123,0.37,124.29,124.27,0.67]
[1766476864420,0.37,124.29,124.24,1.91133402]
[1766476864609,0.37,124.29,124.25,2.58133402]
[1766476864810,0.37,124.29,124.26,0.67]
[1766476865012,0.37,124.29,124.26,1.91133402]
[1766476865220,33.55275361,124.3,124.27,0.67]
[1766476865419,33.55275361,124.3,124.27,2.58133402]
[1766476866929,33.55275361,124.3,124.27,0.67]
[1766476876637,14.7,124.3,124.29,0.7]
[1766476877431,8.41398469,124.32,124.29,0.7]
[1766476877649,22.74398469,124.32,124.29,0.7]
[1766476878027,22.74398469,124.32,124.3,0.7]
[1766476878919,23.11398469,124.32,124.3,0.7]
[1766476880042,0.37,124.31,124.28,0.7]
[1766476881637,22.74398469,124.32,124.28,0.7]
[1766476881842,23.11398469,124.32,124.28,0.7]
[1766476884141,22.74398469,124.32,124.28,0.7]
[1766476884333,0.37,124.31,124.28,0.7]
[1766476886245,0.37,124.31,124.29,0.7]
[1766476886546,23.11398469,124.32,124.29,0.7]
[1766476890450,15.07,124.32,124.29,0.7]
[1766476890760,14.7,124.32,124.31,0.7]
[1766476895046,14.7,124.32,124.27,8.04699444]
[1766476895242,14.7,124.32,124.3,0.7]
[1766476905655,15.07,124.33,124.3,0.7]
[1766476916949,14.7,124.33,124.28,8.04632925]
[1766476917279,0.37,124.29,124.25,0.72]
[1766476917446,14.7,124.28,124.26,0.72]
[1766476917768,14.7,124.29,124.27,0.72]
[1766476918353,15.07,124.29,124.26,0.72]
[1766476918758,0.37,124.28,124.26,0.72]
[1766476919879,0.37,124.28,124.25,0.72]
[1766476920249,0.37,124.26,124.22,1.91133402]
[1766476920450,0.37,124.26,124.22,0.72]
[1766476922165,14.7,124.25,124.22,0.72]
[1766476924075,14.7,124.25,124.2,0.72]
[1766476924076,2.98887985,124.23,124.2,0.72]
[1766476924283,15.07,124.23,124.2,0.72]
[1766476924582,14.7,124.23,124.2,0.72]
[1766476924983,29.77,124.23,124.2,0.72]
[1766476925157,14.7,124.23,124.2,0.72]
[1766476928184,22.75266761,124.23,124.2,0.72]
[1766476929988,14.7,124.23,124.2,0.72]
[1766476931079,15.07,124.23,124.2,0.72]
[1766476931286,26.11154746,124.23,124.2,0.72]
[1766476931479,22.75266761,124.23,124.2,0.72]
[1766476932368,23.12266761,124.23,124.2,0.72]
[1766476934391,15.07,124.23,124.2,0.72]
[1766476935187,33.55699317,124.23,124.2,0.72]
[1766476935485,15.07,124.23,124.2,0.72]
[1766476938069,26.10863414,124.23,124.2,0.72]
[1766476938286,25.73863414,124.23,124.2,0.72]
[1766476938471,0.37,124.22,124.18,0.71]
[1766476938671,26.10863414,124.23,124.18,0.71]
[1766476940887,23.11975429,124.23,124.18,0.71]
[1766476941088,26.10863414,124.23,124.18,0.71]
[1766476941280,23.11975429,124.23,124.19,0.71]
[1766476944808,26.10863414,124.23,124.19,0.71]
[1766476948494,25.73863414,124.23,124.19,0.71]
[1766476948670,0.37,124.22,124.19,0.71]
[1766476949499,25.73863414,124.23,124.19,0.71]
[1766476949692,26.10863414,124.23,124.19,0.71]
[1766476949892,15.07,124.23,124.19,0.71]
[1766476952100,14.7,124.23,124.2,0.71]
[1766476952282,14.7,124.23,124.19,11.04096389]
[1766476952283,0.37,124.26,124.21,2.98887985]
[1766476952602,0.37,124.26,124.23,0.71]
[1766476962404,14.7,124.25,124.21,8.05066496]
[1766476962605,0.37,124.22,124.2,0.69]
[1766476962797,15.07,124.23,124.2,0.69]
[1766476963506,2.98887985,124.21,124.16,0.69]
[1766476963711,3.35887985,124.21,124.17,0.69]
[1766476964009,0.37,124.2,124.17,0.69]
[1766476966508,3.35887985,124.2,124.17,0.69]
[1766476967502,3.35887985,124.2,124.15,0.69]
[1766476967503,0.37,124.19,124.15,0.69]
[1766476967705,26.11047662,124.2,124.15,0.69]
[1766476967893,23.12159677,124.2,124.15,0.69]
[1766476968099,26.11047662,124.2,124.15,0.69]
[1766476969509,0.37,124.19,124.15,0.69]
[1766476969830,25.74047662,124.2,124.15,0.69]
[1766476969994,26.11047662,124.2,124.15,0.69]
[1766476970494,0.37,124.19,124.15,0.69]
[1766476970819,0.37,124.18,124.15,0.69]
[1766476971107,3.35887985,124.18,124.15,0.69]
[1766476973733,0.37,124.18,124.15,0.69]
[1766476976506,3.35887985,124.18,124.15,0.69]
[1766476977621,8.05302864,124.18,124.15,0.69]
[1766476977914,2.98887985,124.16,124.14,0.69]
[1766476980394,11.04303496,124.16,124.14,0.69]
[1766476980625,2.98887985,124.16,124.14,0.69]
[1766476981410,33.58129724,124.17,124.14,0.69]
[1766476981411,33.21129724,124.17,124.14,0.69]
[1766476981596,17.70887985,124.17,124.14,0.69]
[1766476982002,2.98887985,124.17,124.14,0.69]
[1766476985919,1.91586285,124.17,124.14,0.69]
[1766476988221,9.96934281,124.17,124.14,0.69]
[1766476988417,1.91586285,124.16,124.14,0.69]
[1766476994028,2.28586285,124.17,124.14,0.69]
[1766476994235,14.72,124.18,124.15,0.66]
[1766476994419,12.72353581,124.19,124.15,0.66]
[1766476994733,12.35353581,124.19,124.16,0.66]
[1766476994927,12.72353581,124.19,124.16,0.66]
[1766476995129,0.37,124.22,124.16,0.66]
[1766476995347,1.91586285,124.19,124.16,0.66]
[1766476995639,1.91586285,124.18,124.16,0.66]
[1766476996015,0.37,124.2,124.16,0.66]
[1766476996211,1.91586285,124.18,124.16,0.66]
[1766476996827,1.91586285,124.19,124.16,8.05373148]
[1766476997136,14.72,124.22,124.17,0.66]
[1766476997358,1.91586285,124.24,124.18,1.91586285]
[1766476997523,1.91586285,124.24,124.19,0.66]
[1766476997927,16.63586285,124.25,124.2,0.66]
[1766476998219,8.41517125,124.3,124.23,0.66]
[1766476998423,0.37,124.29,124.24,0.66]
[1766476998646,1.91586285,124.27,124.24,0.66]
[1766477001320,12.72353581,124.28,124.24,0.66]
[1766477001938,12.35353581,124.28,124.24,0.66]
[1766477004427,1.91586285,124.3,124.26,0.66]
[1766477004622,15.09,124.31,124.26,2.57586285]
[1766477004833,17.00586285,124.31,124.27,0.66]
[1766477005917,15.09,124.31,124.27,0.66]
[1766477006437,17.00586285,124.31,124.27,0.66]
[1766477006647,12.35353581,124.32,124.28,0.66]
[1766477007939,10.43767296,124.32,124.28,0.66]
[1766477008432,20.76741106,124.32,124.28,0.66]
[1766477008742,1.91586285,124.31,124.28,0.66]
[1766477008916,2.28586285,124.29,124.25,0.66]
[1766477009429,2.28586285,124.28,124.25,0.66]
[1766477010636,10.332237,124.28,124.22,9.96595533]
[1766477010842,10.332237,124.28,124.23,0.66]
[1766477011622,9.962237,124.28,124.23,0.66]
[1766477011823,2.28586285,124.27,124.23,0.66]
[1766477013640,10.33300053,124.27,124.23,0.66]
[1766477013846,0.37,124.26,124.23,0.66]
[1766477019120,2.28586285,124.26,124.23,0.66]
[1766477019643,2.28586285,124.26,124.21,8.05080129]
[1766477019644,0.37,124.23,124.19,0.66]
[1766477019942,1.91586285,124.22,124.19,0.66]
[1766477020133,1.91586285,124.21,124.17,0.66]
[1766477020335,15.07,124.21,124.17,0.66]
[1766477020650,2.28586285,124.2,124.15,0.66]
[1766477021350,10.33764147,124.2,124.16,0.66]
[1766477022949,8.05177862,124.2,124.16,0.66]
[1766477023253,25.03695259,124.21,124.16,0.66]
[1766477024451,1.91586285,124.2,124.16,0.66]
[1766477026054,22.75108974,124.21,124.16,0.66]
[1766477026240,22.75108974,124.21,124.17,0.66]
[1766477026241,16.61586285,124.21,124.17,0.66]
[1766477029366,1.91586285,124.2,124.17,0.66]
[1766477029539,1.91586285,124.19,124.17,0.66]
[1766477031565,1.91586285,124.19,124.15,0.66]
[1766477031743,10.33810848,124.19,124.15,0.66]
[1766477031949,10.33810848,124.19,124.13,10.07178031]
[1766477031950,2.28586285,124.18,124.13,0.76]
[1766477034260,10.33875548,124.18,124.13,0.76]
[1766477034566,1.91586285,124.17,124.13,0.76]
[1766477034942,25.03875548,124.18,124.13,0.76]
[1766477035276,15.07,124.18,124.14,0.66]
[1766477035443,0.37,124.18,124.14,0.66]
[1766477041473,2.28586285,124.18,124.14,0.66]
[1766477043453,14.7,124.2,124.16,0.66]
[1766477043649,15.07,124.2,124.16,0.66]
[1766477044171,15.07,124.2,124.17,0.66]
[1766477044850,23.121552,124.2,124.17,0.66]
[1766477046255,2.99196884,124.19,124.15,0.71]
[1766477046870,26.11352084,124.2,124.15,0.71]
[1766477048775,23.121552,124.2,124.15,0.71]
[1766477048978,26.11352084,124.2,124.15,0.71]
[1766477049176,25.74352084,124.2,124.15,0.71]
[1766477049473,0.37,124.19,124.15,0.71]
[1766477050375,8.42106006,124.21,124.16,0.71]
[1766477050564,14.72,124.2,124.16,0.71]
[1766477050881,26.13049226,124.25,124.2,0.71]
[1766477051174,15.09,124.25,124.21,0.71]
[1766477051358,25.52767296,124.25,124.21,0.71]
[1766477051557,2.99196884,124.23,124.19,0.71]
[1766477051770,3.36196884,124.23,124.19,0.71]
[1766477053173,0.37,124.23,124.19,0.71]
[1766477053875,8.41973115,124.23,124.19,0.71]
[1766477054078,8.04973115,124.23,124.19,0.71]
[1766477054260,0.37,124.22,124.19,0.71]
[1766477055577,8.42039505,124.22,124.19,0.71]
[1766477055893,11.04236389,124.22,124.16,18.49135089]
[1766477056177,26.11236389,124.22,124.17,0.71]
[1766477058085,22.75039505,124.22,124.17,0.71]
[1766477058683,23.12039505,124.22,124.17,0.71]
[1766477058885,26.11236389,124.22,124.17,0.71]
[1766477060282,0.37,124.21,124.17,0.71]
[1766477060471,3.36196884,124.2,124.17,0.71]
[1766477062082,3.36196884,124.2,124.14,21.48499771]
[1766477062083,0.37,124.19,124.15,0.71]
[1766477062472,3.36196884,124.19,124.15,0.71]
[1766477064185,0.37,124.19,124.15,0.71]
[1766477064387,45.2632566,124.22,124.15,0.71]
[1766477064388,14.7,124.21,124.16,2.99196884]
[1766477064573,14.7,124.21,124.17,0.71]
[1766477064771,15.07,124.21,124.17,0.71]
[1766477065597,18.06196884,124.21,124.17,0.71]
[1766477065887,26.11289612,124.21,124.17,0.71]
[1766477066689,23.12092728,124.21,124.17,0.71]
[1766477066871,0.37,124.2,124.17,0.71]
[1766477070692,8.42156571,124.2,124.17,0.71]
[1766477072194,11.41353455,124.2,124.17,0.71]
[1766477072495,8.42156571,124.2,124.17,0.71]
[1766477077294,0.37,124.2,124.17,0.71]
[1766477081903,14.7,124.21,124.17,0.71]
[1766477082196,15.07,124.21,124.17,0.71]
[1766477083205,21.48010027,124.22,124.18,0.72]
[1766477083206,10.43767296,124.22,124.18,0.72]
[1766477087006,21.85023971,124.22,124.18,0.72]
[1766477088312,3.36196884,124.21,124.18,0.72]
[1766477089108,18.06196884,124.21,124.18,0.72]
[1766477090008,26.11302822,124.21,124.18,0.72]
[1766477091710,26.11302822,124.21,124.16,0.72]
[1766477091711,2.99196884,124.2,124.16,0.72]
[1766477093510,26.11302822,124.21,124.16,0.72]
[1766477101223,26.11302822,124.21,124.16,8.05403184]
[1766477101422,0.37,124.21,124.17,0.72]
[1766477101633,4.20131774,124.25,124.2,0.72]
[1766477101806,0.7,124.25,124.21,0.72]
[1766477102134,0.7,124.25,124.21,8.05071798]
[1766477102307,0.7,124.25,124.22,0.72]
[1766477102513,15.4,124.26,124.22,0.72]
[1766477103224,0.7,124.25,124.22,0.72]
[1766477103826,0.7,124.24,124.2,0.72]
[1766477104004,0.7,124.23,124.2,0.72]
[1766477104424,3.69196884,124.23,124.2,0.72]
[1766477104609,0.7,124.23,124.2,0.72]
[1766477104811,11.04166847,124.23,124.18,25.13767296]